[Event "December 19 Early 2023"]
[Site "https://www.chess.com"]
[Date "2023.12.19"]
[Round "4"]
[White "Materia, Marco"]
[Black "Kavyev, Ruslan"]
[Result "1/2-1/2"]
[Board "57"]
[TimeControl "180+1"]
[WhiteFideId "45150451"]
[BlackFideId "34110981"]
[WhiteElo "2451"]
[BlackElo "2336"]
[WhiteTeam "FRA"]
[BlackTeam "RUS"]
[WhiteClock "0:00:21"]
[BlackClock "0:00:19"]

1. d4 {[%clk 0:03:00]}  Nf6 {[%clk 0:02:59]} 2. c4 {[%clk 0:03:01]}  g6 {[%clk 0:02:58]} 3. Nc3 {[%clk 0:03:00]}  Bg7 {[%clk 0:02:58]} 4. Nf3 {[%clk 0:03:01]}  O-O {[%clk 0:02:58]} 5. Bg5 {[%clk 0:03:02]}  c5 {[%clk 0:02:53]} 6. e3 {[%clk 0:03:01]}  d6 {[%clk 0:02:52]} 7. d5 {[%clk 0:02:59]}  a6 {[%clk 0:02:51]} 8. a4 {[%clk 0:02:54]}  e5 {[%clk 0:02:38]} 9. dxe6 {[%clk 0:02:48]}  Bxe6 {[%clk 0:02:30]} 10. Be2 {[%clk 0:02:47]}  Nc6 {[%clk 0:02:26]} 11. O-O {[%clk 0:02:47]}  h6 {[%clk 0:02:15]} 12. Bf4 {[%clk 0:02:41]}  d5 {[%clk 0:02:09]} 13. cxd5 {[%clk 0:02:37]}  Nxd5 {[%clk 0:02:10]} 14. Nxd5 {[%clk 0:02:36]}  Qxd5 {[%clk 0:02:05]} 15. Qc1 {[%clk 0:02:31]}  Qb3 {[%clk 0:02:00]} 16. Qxc5 {[%clk 0:02:27]}  Qxb2 {[%clk 0:01:57]} 17. Rae1 {[%clk 0:02:23]}  Qb4 {[%clk 0:01:52]} 18. Qxb4 {[%clk 0:02:23]}  Nxb4 {[%clk 0:01:52]} 19. Bd6 {[%clk 0:02:15]}  Nc2 {[%clk 0:01:42]} 20. Bxf8 {[%clk 0:02:15]}  Nxe1 {[%clk 0:01:41]} 21. Bxg7 {[%clk 0:02:16]}  Nxf3+ {[%clk 0:01:42]} 22. Bxf3 {[%clk 0:02:17]}  Kxg7 {[%clk 0:01:41]} 23. Bxb7 {[%clk 0:02:16]}  Ra7 {[%clk 0:01:39]} 24. Rb1 {[%clk 0:02:15]}  a5 {[%clk 0:01:35]} 25. Bc6 {[%clk 0:02:10]}  Rc7 {[%clk 0:01:33]} 26. Bb5 {[%clk 0:02:10]}  Ba2 {[%clk 0:01:31]} 27. Ra1 {[%clk 0:02:05]}  Bb3 {[%clk 0:01:27]} 28. g3 {[%clk 0:02:04]}  h5 {[%clk 0:01:24]} 29. h4 {[%clk 0:02:03]}  Rc2 {[%clk 0:01:14]} 30. Rb1 {[%clk 0:01:49]}  Ba2 {[%clk 0:01:14]} 31. Rd1 {[%clk 0:01:49]}  Bc4 {[%clk 0:01:10]} 32. Bxc4 {[%clk 0:01:16]}  Rxc4 {[%clk 0:01:11]} 33. Rd4 {[%clk 0:01:16]}  Rc1+ {[%clk 0:01:04]} 34. Kg2 {[%clk 0:01:17]}  Ra1 {[%clk 0:01:05]} 35. Kf3 {[%clk 0:01:17]}  Ra2 {[%clk 0:01:05]} 36. e4 {[%clk 0:01:17]}  Kf6 {[%clk 0:01:04]} 37. Ke3 {[%clk 0:01:15]}  Ke6 {[%clk 0:01:04]} 38. f3 {[%clk 0:01:15]}  Ra3+ {[%clk 0:00:51]} 39. Kf4 {[%clk 0:01:15]}  Kf6 {[%clk 0:00:49]} 40. g4 {[%clk 0:01:04]}  hxg4 {[%clk 0:00:49]} 41. fxg4 {[%clk 0:01:05]}  Ra1 {[%clk 0:00:48]} 42. g5+ {[%clk 0:00:59]}  Ke6 {[%clk 0:00:47]} 43. Rc4 {[%clk 0:00:59]}  Kd6 {[%clk 0:00:38]} 44. Ke3 {[%clk 0:00:52]}  Re1+ {[%clk 0:00:33]} 45. Kd4 {[%clk 0:00:50]}  Ra1 {[%clk 0:00:31]} 46. e5+ {[%clk 0:00:49]}  Ke6 {[%clk 0:00:31]} 47. Kc5 {[%clk 0:00:47]}  Rb1 {[%clk 0:00:30]} 48. Re4 {[%clk 0:00:41]}  Rb2 {[%clk 0:00:29]} 49. Rf4 {[%clk 0:00:23]}  Kxe5 {[%clk 0:00:19]} 50. Rxf7 {[%clk 0:00:23]}  Rb4 {[%clk 0:00:19]} 51. Re7+ {[%clk 0:00:19]}  Kf5 {[%clk 0:00:19]} 52. Rf7+ {[%clk 0:00:19]}  Kg4 {[%clk 0:00:19]} 53. Rf6 {[%clk 0:00:20]}  Kxh4 {[%clk 0:00:17]} 54. Rxg6 {[%clk 0:00:19]}  Rxa4 {[%clk 0:00:17]} 55. Rg8 {[%clk 0:00:19]}  Rg4 {[%clk 0:00:17]} 56. g6 {[%clk 0:00:19]}  Kh5 {[%clk 0:00:18]} 57. g7 {[%clk 0:00:19]}  Kh6 {[%clk 0:00:18]} 58. Kb5 {[%clk 0:00:20]}  Rxg7 {[%clk 0:00:18]} 59. Rxg7 {[%clk 0:00:20]}  Kxg7 {[%clk 0:00:19]} 60. Kxa5 {[%clk 0:00:21]} 1/2-1/2

[Event "December 19 Early 2023"]
[Site "https://www.chess.com"]
[Date "2023.12.19"]
[Round "4"]
[White "Vakhlamov, Igor L."]
[Black "Novoselov, Roman"]
[Result "1/2-1/2"]
[Board "59"]
[TimeControl "180+1"]
[WhiteFideId "24126748"]
[BlackFideId "4135067"]
[WhiteElo "2407"]
[BlackElo "2250"]
[WhiteTeam "RUS"]
[BlackTeam "RUS"]
[WhiteClock "0:00:24"]
[BlackClock "0:00:19"]

1. e4 {[%clk 0:02:59]}  e6 {[%clk 0:02:59]} 2. d4 {[%clk 0:02:58]}  d5 {[%clk 0:03:00]} 3. Nc3 {[%clk 0:02:58]}  Nf6 {[%clk 0:02:59]} 4. Bd3 {[%clk 0:02:58]}  dxe4 {[%clk 0:02:57]} 5. Nxe4 {[%clk 0:02:59]}  Nbd7 {[%clk 0:02:57]} 6. Nf3 {[%clk 0:02:59]}  Be7 {[%clk 0:02:54]} 7. Qe2 {[%clk 0:02:59]}  Nxe4 {[%clk 0:02:42]} 8. Qxe4 {[%clk 0:03:00]}  Nf6 {[%clk 0:02:43]} 9. Qe2 {[%clk 0:02:54]}  c5 {[%clk 0:02:38]} 10. dxc5 {[%clk 0:02:55]}  Bxc5 {[%clk 0:02:37]} 11. O-O {[%clk 0:02:52]}  O-O {[%clk 0:02:17]} 12. Bg5 {[%clk 0:02:52]}  Be7 {[%clk 0:02:13]} 13. Rad1 {[%clk 0:02:50]}  Qc7 {[%clk 0:02:05]} 14. Rfe1 {[%clk 0:02:50]}  Bd7 {[%clk 0:01:58]} 15. Ne5 {[%clk 0:02:50]}  Rad8 {[%clk 0:01:52]} 16. c3 {[%clk 0:02:20]}  Bc6 {[%clk 0:01:47]} 17. Nxc6 {[%clk 0:02:19]}  Qxc6 {[%clk 0:01:48]} 18. h3 {[%clk 0:02:09]}  h6 {[%clk 0:01:40]} 19. Bh4 {[%clk 0:02:07]}  Qa4 {[%clk 0:01:39]} 20. Bxf6 {[%clk 0:01:25]}  Bxf6 {[%clk 0:01:40]} 21. Be4 {[%clk 0:01:19]}  Qxa2 {[%clk 0:01:11]} 22. Ra1 {[%clk 0:01:15]}  Qb3 {[%clk 0:01:04]} 23. Rxa7 {[%clk 0:01:16]}  Rd7 {[%clk 0:00:50]} 24. g3 {[%clk 0:00:43]}  Rfd8 {[%clk 0:00:48]} 25. Qf3 {[%clk 0:00:25]}  Qxb2 {[%clk 0:00:44]} 26. Rxb7 {[%clk 0:00:24]}  Rxb7 {[%clk 0:00:39]} 27. Bxb7 {[%clk 0:00:25]}  Qxc3 {[%clk 0:00:39]} 28. Qxc3 {[%clk 0:00:24]}  Bxc3 {[%clk 0:00:40]} 29. Re2 {[%clk 0:00:24]}  g5 {[%clk 0:00:33]} 30. Kg2 {[%clk 0:00:23]}  Kg7 {[%clk 0:00:33]} 31. Rc2 {[%clk 0:00:24]}  Bd4 {[%clk 0:00:29]} 32. Rd2 {[%clk 0:00:24]}  Kf6 {[%clk 0:00:24]} 33. Bf3 {[%clk 0:00:24]}  Bb6 {[%clk 0:00:19]} 34. Rxd8 {[%clk 0:00:24]} 1/2-1/2

[Event "December 19 Early 2023"]
[Site "https://www.chess.com"]
[Date "2023.12.19"]
[Round "4"]
[White "Spata, German"]
[Black "Klimkowski, Jan"]
[Result "0-1"]
[Board "61"]
[TimeControl "180+1"]
[WhiteFideId "113026"]
[BlackFideId "21856222"]
[WhiteElo "2260"]
[BlackElo "2324"]
[WhiteTeam "ARG"]
[BlackTeam "POL"]
[WhiteClock "0:00:01"]
[BlackClock "0:01:42"]

1. Nf3 {[%clk 0:02:56]}  Nf6 {[%clk 0:03:00]} 2. g3 {[%clk 0:02:56]}  d5 {[%clk 0:02:59]} 3. Bg2 {[%clk 0:02:53]}  Bf5 {[%clk 0:02:59]} 4. O-O {[%clk 0:02:52]}  e6 {[%clk 0:02:59]} 5. d3 {[%clk 0:02:49]}  h6 {[%clk 0:02:57]} 6. c4 {[%clk 0:02:48]}  c6 {[%clk 0:02:57]} 7. Qb3 {[%clk 0:02:03]}  Qb6 {[%clk 0:02:57]} 8. Be3 {[%clk 0:01:57]}  Qxb3 {[%clk 0:02:49]} 9. axb3 {[%clk 0:01:57]}  a6 {[%clk 0:02:50]} 10. Nc3 {[%clk 0:01:44]}  Nbd7 {[%clk 0:02:50]} 11. d4 {[%clk 0:01:36]}  Bd6 {[%clk 0:02:47]} 12. c5 {[%clk 0:01:36]}  Bc7 {[%clk 0:02:44]} 13. b4 {[%clk 0:01:35]}  O-O {[%clk 0:02:42]} 14. Bf4 {[%clk 0:01:34]}  Bxf4 {[%clk 0:02:38]} 15. gxf4 {[%clk 0:01:34]}  Ne4 {[%clk 0:02:38]} 16. e3 {[%clk 0:01:32]}  f6 {[%clk 0:02:38]} 17. Nxe4 {[%clk 0:01:23]}  Bxe4 {[%clk 0:02:39]} 18. Nd2 {[%clk 0:01:05]}  Bxg2 {[%clk 0:02:39]} 19. Kxg2 {[%clk 0:01:05]}  g5 {[%clk 0:02:39]} 20. fxg5 {[%clk 0:01:03]}  hxg5 {[%clk 0:02:40]} 21. h4 {[%clk 0:00:49]}  gxh4 {[%clk 0:02:31]} 22. Rh1 {[%clk 0:00:49]}  Rf7 {[%clk 0:02:32]} 23. Rxh4 {[%clk 0:00:48]}  Rg7+ {[%clk 0:02:33]} 24. Kf3 {[%clk 0:00:47]}  Kf7 {[%clk 0:02:31]} 25. Rah1 {[%clk 0:00:47]}  Rag8 {[%clk 0:02:30]} 26. Rh7 {[%clk 0:00:47]}  e5 {[%clk 0:02:28]} 27. Ke2 {[%clk 0:00:42]}  exd4 {[%clk 0:02:23]} 28. exd4 {[%clk 0:00:42]}  Nf8 {[%clk 0:02:23]} 29. Rxg7+ {[%clk 0:00:41]}  Rxg7 {[%clk 0:02:24]} 30. Nf3 {[%clk 0:00:39]}  Ne6 {[%clk 0:02:24]} 31. Ke3 {[%clk 0:00:37]}  Kg8 {[%clk 0:02:23]} 32. Rg1 {[%clk 0:00:35]}  Rxg1 {[%clk 0:02:22]} 33. Nxg1 {[%clk 0:00:36]}  Kf7 {[%clk 0:02:20]} 34. Ne2 {[%clk 0:00:36]}  Ng7 {[%clk 0:02:19]} 35. Kf4 {[%clk 0:00:34]}  Kg6 {[%clk 0:02:20]} 36. Ng3 {[%clk 0:00:28]}  Ne6+ {[%clk 0:02:19]} 37. Ke3 {[%clk 0:00:28]}  Kg5 {[%clk 0:02:20]} 38. Ne2 {[%clk 0:00:23]}  f5 {[%clk 0:02:20]} 39. Kf3 {[%clk 0:00:22]}  f4 {[%clk 0:02:18]} 40. Kg2 {[%clk 0:00:23]}  Ng7 {[%clk 0:02:13]} 41. Kf3 {[%clk 0:00:18]}  Nf5 {[%clk 0:02:09]} 42. Kg2 {[%clk 0:00:18]}  Nh4+ {[%clk 0:02:06]} 43. Kh3 {[%clk 0:00:16]}  Nf3 {[%clk 0:02:05]} 44. Kg2 {[%clk 0:00:15]}  Kg4 {[%clk 0:02:04]} 45. Kf1 {[%clk 0:00:13]}  Kf5 {[%clk 0:01:53]} 46. Kg2 {[%clk 0:00:10]}  Ne1+ {[%clk 0:01:51]} 47. Kf1 {[%clk 0:00:10]}  Nd3 {[%clk 0:01:51]} 48. b5 {[%clk 0:00:06]}  axb5 {[%clk 0:01:50]} 49. b3 {[%clk 0:00:06]}  f3 {[%clk 0:01:47]} 50. Ng1 {[%clk 0:00:01]}  Kg4 {[%clk 0:01:42]} 0-1

[Event "December 19 Early 2023"]
[Site "https://www.chess.com"]
[Date "2023.12.19"]
[Round "4"]
[White "Dragun, Kamil"]
[Black "Bettalli, Francesco"]
[Result "1-0"]
[Board "62"]
[TimeControl "180+1"]
[WhiteFideId "1134167"]
[BlackFideId "2816453"]
[WhiteElo "2551"]
[BlackElo "2226"]
[WhiteTeam "POL"]
[BlackTeam "ITA"]
[WhiteClock "0:00:06"]
[BlackClock "0:00:00"]

1. d4 {[%clk 0:03:00]}  Nf6 {[%clk 0:02:57]} 2. c4 {[%clk 0:03:01]}  c5 {[%clk 0:02:56]} 3. d5 {[%clk 0:03:01]}  a6 {[%clk 0:02:57]} 4. a4 {[%clk 0:02:47]}  d6 {[%clk 0:02:57]} 5. Nc3 {[%clk 0:02:46]}  g6 {[%clk 0:02:57]} 6. Nf3 {[%clk 0:02:45]}  e5 {[%clk 0:02:53]} 7. e4 {[%clk 0:02:35]}  a5 {[%clk 0:02:53]} 8. Bd3 {[%clk 0:02:34]}  Bg7 {[%clk 0:02:52]} 9. Nb5 {[%clk 0:02:22]}  Na6 {[%clk 0:02:50]} 10. Bg5 {[%clk 0:02:17]}  h6 {[%clk 0:02:44]} 11. Bh4 {[%clk 0:02:16]}  g5 {[%clk 0:02:44]} 12. Bg3 {[%clk 0:02:16]}  Qe7 {[%clk 0:02:38]} 13. O-O {[%clk 0:01:57]}  Bg4 {[%clk 0:02:38]} 14. Ra3 {[%clk 0:01:49]}  O-O-O {[%clk 0:02:34]} 15. Bb1 {[%clk 0:01:48]}  Nb4 {[%clk 0:02:33]} 16. Qc1 {[%clk 0:01:37]}  Nh5 {[%clk 0:02:19]} 17. h3 {[%clk 0:01:34]}  Bxf3 {[%clk 0:02:18]} 18. Rxf3 {[%clk 0:01:33]}  Nf4 {[%clk 0:02:18]} 19. Qd1 {[%clk 0:01:22]}  h5 {[%clk 0:02:15]} 20. Rb3 {[%clk 0:01:21]}  Bf6 {[%clk 0:01:51]} 21. Bh2 {[%clk 0:00:51]}  g4 {[%clk 0:01:42]} 22. hxg4 {[%clk 0:00:49]}  Rdg8 {[%clk 0:01:41]} 23. Bxf4 {[%clk 0:00:42]}  exf4 {[%clk 0:01:41]} 24. gxh5 {[%clk 0:00:43]}  Be5 {[%clk 0:01:37]} 25. Rh3 {[%clk 0:00:41]}  Qg5 {[%clk 0:01:37]} 26. Qf3 {[%clk 0:00:39]}  Rg7 {[%clk 0:01:31]} 27. Kh1 {[%clk 0:00:27]}  Kd7 {[%clk 0:01:31]} 28. g3 {[%clk 0:00:20]}  Rgh7 {[%clk 0:01:18]} 29. g4 {[%clk 0:00:20]}  Rg7 {[%clk 0:01:11]} 30. Rg1 {[%clk 0:00:21]}  Bxb2 {[%clk 0:01:08]} 31. e5 {[%clk 0:00:21]}  Bxe5 {[%clk 0:01:06]} 32. Bf5+ {[%clk 0:00:21]}  Ke7 {[%clk 0:01:05]} 33. Rg2 {[%clk 0:00:19]}  Kf6 {[%clk 0:00:51]} 34. Qe4 {[%clk 0:00:19]}  Ke7 {[%clk 0:00:44]} 35. h6 {[%clk 0:00:18]}  Rxh6 {[%clk 0:00:44]} 36. Rxh6 {[%clk 0:00:19]}  Qxh6+ {[%clk 0:00:44]} 37. Rh2 {[%clk 0:00:20]}  Qg5 {[%clk 0:00:31]} 38. Kg2 {[%clk 0:00:19]}  f3+ {[%clk 0:00:29]} 39. Kxf3 {[%clk 0:00:19]}  Qc1 {[%clk 0:00:26]} 40. Rh3 {[%clk 0:00:11]}  Qf1 {[%clk 0:00:22]} 41. Rh6 {[%clk 0:00:09]}  Qd1+ {[%clk 0:00:11]} 42. Kg2 {[%clk 0:00:09]}  f6 {[%clk 0:00:09]} 43. Rh8 {[%clk 0:00:08]}  Na6 {[%clk 0:00:04]} 44. Ra8 {[%clk 0:00:07]}  Kf7 {[%clk 0:00:04]} 45. Ra7 {[%clk 0:00:07]}  Kg8 {[%clk 0:00:03]} 46. Be6+ {[%clk 0:00:07]}  Kf8 {[%clk 0:00:02]} 47. Ra8+ {[%clk 0:00:07]}  Ke7 {[%clk 0:00:00]} 48. Qf5 {[%clk 0:00:06]} 1-0

[Event "December 19 Early 2023"]
[Site "https://www.chess.com"]
[Date "2023.12.19"]
[Round "4"]
[White "TitarovVasiliYouTube"]
[Black "Suyarov, Mukhammadzokhid"]
[Result "0-1"]
[Board "63"]
[TimeControl "180+1"]
[BlackFideId "14210495"]
[WhiteElo "2584"]
[BlackElo "2449"]
[BlackTeam "UZB"]
[WhiteClock "0:00:00"]
[BlackClock "0:00:16"]

1. e4 {[%clk 0:03:00]}  e5 {[%clk 0:03:00]} 2. Nf3 {[%clk 0:03:01]}  Nc6 {[%clk 0:03:00]} 3. Bb5 {[%clk 0:03:01]}  a6 {[%clk 0:03:01]} 4. Ba4 {[%clk 0:03:02]}  Nf6 {[%clk 0:03:01]} 5. O-O {[%clk 0:03:01]}  b5 {[%clk 0:03:01]} 6. Bb3 {[%clk 0:03:01]}  Bc5 {[%clk 0:03:01]} 7. d3 {[%clk 0:02:58]}  d6 {[%clk 0:03:02]} 8. c3 {[%clk 0:02:55]}  h6 {[%clk 0:03:01]} 9. a4 {[%clk 0:02:55]}  Rb8 {[%clk 0:03:01]} 10. Re1 {[%clk 0:02:50]}  O-O {[%clk 0:03:00]} 11. Nbd2 {[%clk 0:02:50]}  Re8 {[%clk 0:02:59]} 12. Nf1 {[%clk 0:02:49]}  Bb6 {[%clk 0:02:55]} 13. Ng3 {[%clk 0:02:45]}  Na5 {[%clk 0:02:30]} 14. Bc2 {[%clk 0:02:44]}  c5 {[%clk 0:02:30]} 15. axb5 {[%clk 0:02:42]}  axb5 {[%clk 0:02:31]} 16. d4 {[%clk 0:02:05]}  cxd4 {[%clk 0:02:31]} 17. cxd4 {[%clk 0:02:06]}  Nc6 {[%clk 0:02:31]} 18. d5 {[%clk 0:01:55]}  Nd4 {[%clk 0:02:32]} 19. Be3 {[%clk 0:01:51]}  Bg4 {[%clk 0:02:30]} 20. Bd3 {[%clk 0:01:13]}  Qd7 {[%clk 0:01:53]} 21. Be2 {[%clk 0:01:04]}  Nxe2+ {[%clk 0:01:38]} 22. Qxe2 {[%clk 0:01:05]}  Bxe3 {[%clk 0:01:29]} 23. Qxe3 {[%clk 0:01:04]}  Rec8 {[%clk 0:01:27]} 24. h3 {[%clk 0:00:56]}  Bxf3 {[%clk 0:01:26]} 25. Qxf3 {[%clk 0:00:57]}  Rc2 {[%clk 0:01:27]} 26. Nf5 {[%clk 0:00:52]}  Kh7 {[%clk 0:01:13]} 27. Ra6 {[%clk 0:00:44]}  Ne8 {[%clk 0:00:51]} 28. b3 {[%clk 0:00:28]}  Rbc8 {[%clk 0:00:49]} 29. Rea1 {[%clk 0:00:20]}  R8c3 {[%clk 0:00:33]} 30. Ne3 {[%clk 0:00:16]}  Rb2 {[%clk 0:00:27]} 31. Ra7 {[%clk 0:00:15]}  Rc7 {[%clk 0:00:27]} 32. Rxc7 {[%clk 0:00:14]}  Qxc7 {[%clk 0:00:28]} 33. Nf5 {[%clk 0:00:12]}  g6 {[%clk 0:00:27]} 34. Ng3 {[%clk 0:00:10]}  Kg7 {[%clk 0:00:27]} 35. Nf1 {[%clk 0:00:07]}  Qc2 {[%clk 0:00:26]} 36. Ra8 {[%clk 0:00:05]}  Nf6 {[%clk 0:00:25]} 37. Ra6 {[%clk 0:00:03]}  Nxe4 {[%clk 0:00:25]} 38. Ra7 {[%clk 0:00:01]}  Qxf2+ {[%clk 0:00:20]} 39. Qxf2 {[%clk 0:00:02]}  Nxf2 {[%clk 0:00:21]} 40. Rb7 {[%clk 0:00:01]}  Ne4 {[%clk 0:00:19]} 41. Rxb5 {[%clk 0:00:01]}  Nc3 {[%clk 0:00:19]} 42. Rb6 {[%clk 0:00:01]}  Nxd5 {[%clk 0:00:19]} 43. Rxd6 {[%clk 0:00:02]}  Nf4 {[%clk 0:00:20]} 44. Ne3 {[%clk 0:00:02]}  Rxb3 {[%clk 0:00:19]} 45. Ng4 {[%clk 0:00:01]}  Rb5 {[%clk 0:00:18]} 46. Rd7 {[%clk 0:00:01]}  h5 {[%clk 0:00:18]} 47. Ne3 {[%clk 0:00:02]}  e4 {[%clk 0:00:19]} 48. Re7 {[%clk 0:00:01]}  Rb4 {[%clk 0:00:18]} 49. Kh2 {[%clk 0:00:01]}  Kf6 {[%clk 0:00:17]} 50. Re8 {[%clk 0:00:01]}  Rd4 {[%clk 0:00:17]} 51. h4 {[%clk 0:00:00]}  Rd3 {[%clk 0:00:16]} 0-1

[Event "December 19 Early 2023"]
[Site "https://www.chess.com"]
[Date "2023.12.19"]
[Round "4"]
[White "IM_ArthurDW08"]
[Black "Belov, Alexei"]
[Result "1-0"]
[Board "64"]
[TimeControl "180+1"]
[BlackFideId "4128206"]
[WhiteElo "2762"]
[BlackElo "2580"]
[BlackTeam "RUS"]
[WhiteClock "0:01:12"]
[BlackClock "0:00:17"]

1. e4 {[%clk 0:03:00]}  e6 {[%clk 0:03:00]} 2. d4 {[%clk 0:03:01]}  d5 {[%clk 0:03:00]} 3. Nc3 {[%clk 0:03:01]}  Nf6 {[%clk 0:03:01]} 4. Bg5 {[%clk 0:03:00]}  dxe4 {[%clk 0:03:00]} 5. Nxe4 {[%clk 0:03:00]}  Be7 {[%clk 0:03:01]} 6. Bxf6 {[%clk 0:03:00]}  Bxf6 {[%clk 0:03:01]} 7. Nf3 {[%clk 0:02:59]}  O-O {[%clk 0:03:01]} 8. Qd2 {[%clk 0:02:59]}  b6 {[%clk 0:02:59]} 9. O-O-O {[%clk 0:02:56]}  Bb7 {[%clk 0:02:59]} 10. Bd3 {[%clk 0:02:53]}  Nd7 {[%clk 0:02:59]} 11. g4 {[%clk 0:02:45]}  Be7 {[%clk 0:02:57]} 12. Kb1 {[%clk 0:02:23]}  c5 {[%clk 0:02:49]} 13. g5 {[%clk 0:01:48]}  cxd4 {[%clk 0:02:40]} 14. Nxd4 {[%clk 0:01:36]}  Nc5 {[%clk 0:02:30]} 15. Qe3 {[%clk 0:01:33]}  Nxd3 {[%clk 0:02:03]} 16. Rxd3 {[%clk 0:01:31]}  Qd5 {[%clk 0:01:56]} 17. f3 {[%clk 0:01:30]}  Qe5 {[%clk 0:01:50]} 18. h4 {[%clk 0:01:26]}  Rfd8 {[%clk 0:01:46]} 19. Rhd1 {[%clk 0:01:26]}  Rd5 {[%clk 0:01:34]} 20. f4 {[%clk 0:01:23]}  Qc7 {[%clk 0:01:28]} 21. Nc3 {[%clk 0:01:19]}  Rdd8 {[%clk 0:01:17]} 22. Nxe6 {[%clk 0:01:13]}  fxe6 {[%clk 0:01:03]} 23. Qxe6+ {[%clk 0:01:14]}  Kh8 {[%clk 0:01:03]} 24. Rd7 {[%clk 0:01:14]}  Rxd7 {[%clk 0:00:58]} 25. Rxd7 {[%clk 0:01:15]}  Qxf4 {[%clk 0:00:53]} 26. Qxe7 {[%clk 0:01:15]}  Rg8 {[%clk 0:00:38]} 27. b3 {[%clk 0:01:11]}  Bc6 {[%clk 0:00:33]} 28. Rd8 {[%clk 0:01:11]}  Qxh4 {[%clk 0:00:23]} 29. Rxg8+ {[%clk 0:01:11]}  Kxg8 {[%clk 0:00:17]} 30. Qd8+ {[%clk 0:01:12]} 1-0

[Event "December 19 Early 2023"]
[Site "https://www.chess.com"]
[Date "2023.12.19"]
[Round "4"]
[White "Loutragotis, Dimitrios"]
[Black "Postny, Evgeny"]
[Result "0-1"]
[Board "65"]
[TimeControl "180+1"]
[WhiteFideId "4268458"]
[BlackFideId "2804344"]
[WhiteElo "2151"]
[BlackElo "2505"]
[WhiteTeam "GRE"]
[BlackTeam "ISR"]
[WhiteClock "0:00:06"]
[BlackClock "0:00:04"]

1. e4 {[%clk 0:02:59]}  c5 {[%clk 0:02:59]} 2. Nf3 {[%clk 0:02:59]}  Nc6 {[%clk 0:03:00]} 3. d4 {[%clk 0:02:59]}  cxd4 {[%clk 0:03:01]} 4. Nxd4 {[%clk 0:03:00]}  Nf6 {[%clk 0:03:01]} 5. Nc3 {[%clk 0:03:00]}  Rb8 {[%clk 0:03:02]} 6. Bc4 {[%clk 0:02:50]}  e6 {[%clk 0:02:58]} 7. Bb3 {[%clk 0:02:37]}  d6 {[%clk 0:02:50]} 8. O-O {[%clk 0:02:37]}  Be7 {[%clk 0:02:49]} 9. Be3 {[%clk 0:02:36]}  a6 {[%clk 0:02:44]} 10. f4 {[%clk 0:02:36]}  Qc7 {[%clk 0:02:43]} 11. f5 {[%clk 0:02:27]}  Nxd4 {[%clk 0:02:37]} 12. Qxd4 {[%clk 0:02:26]}  O-O {[%clk 0:02:29]} 13. fxe6 {[%clk 0:02:23]}  fxe6 {[%clk 0:02:22]} 14. Kh1 {[%clk 0:02:02]}  b5 {[%clk 0:02:18]} 15. Rad1 {[%clk 0:01:52]}  Kh8 {[%clk 0:02:17]} 16. a3 {[%clk 0:01:52]}  Bd7 {[%clk 0:02:11]} 17. Ne2 {[%clk 0:01:41]}  Ng4 {[%clk 0:01:56]} 18. Bg1 {[%clk 0:01:22]}  Rxf1 {[%clk 0:01:46]} 19. Rxf1 {[%clk 0:01:23]}  Bf6 {[%clk 0:01:46]} 20. Qd3 {[%clk 0:01:21]}  Bxb2 {[%clk 0:01:42]} 21. Nf4 {[%clk 0:01:03]}  Be5 {[%clk 0:01:11]} 22. Nxe6 {[%clk 0:00:50]}  Bxe6 {[%clk 0:01:10]} 23. Bxe6 {[%clk 0:00:49]}  Nf6 {[%clk 0:01:09]} 24. Bb3 {[%clk 0:00:41]}  Rc8 {[%clk 0:01:01]} 25. a4 {[%clk 0:00:40]}  Qc6 {[%clk 0:00:55]} 26. axb5 {[%clk 0:00:40]}  axb5 {[%clk 0:00:56]} 27. Bd5 {[%clk 0:00:39]}  Nxd5 {[%clk 0:00:52]} 28. exd5 {[%clk 0:00:40]}  Qc4 {[%clk 0:00:47]} 29. Qxc4 {[%clk 0:00:30]}  bxc4 {[%clk 0:00:48]} 30. Rb1 {[%clk 0:00:27]}  h6 {[%clk 0:00:39]} 31. g3 {[%clk 0:00:27]}  Ra8 {[%clk 0:00:34]} 32. Kg2 {[%clk 0:00:27]}  Ra2 {[%clk 0:00:21]} 33. Rc1 {[%clk 0:00:26]}  Kh7 {[%clk 0:00:19]} 34. Kf3 {[%clk 0:00:26]}  Bb2 {[%clk 0:00:12]} 35. Rd1 {[%clk 0:00:24]}  Bf6 {[%clk 0:00:11]} 36. Rd2 {[%clk 0:00:23]}  c3 {[%clk 0:00:11]} 37. Re2 {[%clk 0:00:22]}  Ra5 {[%clk 0:00:09]} 38. Ke4 {[%clk 0:00:22]}  Kg6 {[%clk 0:00:09]} 39. Re3 {[%clk 0:00:12]}  Ra4+ {[%clk 0:00:07]} 40. Kf3 {[%clk 0:00:12]}  Rc4 {[%clk 0:00:04]} 41. Rd3 {[%clk 0:00:12]}  h5 {[%clk 0:00:05]} 42. h4 {[%clk 0:00:12]}  Kf5 {[%clk 0:00:05]} 43. Be3 {[%clk 0:00:13]}  Ra4 {[%clk 0:00:05]} 44. Bf4 {[%clk 0:00:13]}  Ra2 {[%clk 0:00:04]} 45. Bxd6 {[%clk 0:00:13]}  Rxc2 {[%clk 0:00:05]} 46. Bb4 {[%clk 0:00:13]}  Rb2 {[%clk 0:00:03]} 47. Bxc3 {[%clk 0:00:13]}  Rb3 {[%clk 0:00:04]} 48. d6 {[%clk 0:00:13]}  Rxc3 {[%clk 0:00:04]} 49. Rxc3 {[%clk 0:00:14]}  Bxc3 {[%clk 0:00:05]} 50. d7 {[%clk 0:00:14]}  Bf6 {[%clk 0:00:06]} 51. Ke3 {[%clk 0:00:14]}  Kg4 {[%clk 0:00:02]} 52. Kf2 {[%clk 0:00:13]}  Bd8 {[%clk 0:00:02]} 53. Kg2 {[%clk 0:00:14]}  Bc7 {[%clk 0:00:02]} 54. Kf1 {[%clk 0:00:09]}  Kxg3 {[%clk 0:00:02]} 55. Ke2 {[%clk 0:00:10]}  Bd8 {[%clk 0:00:02]} 56. Kd3 {[%clk 0:00:11]}  Kxh4 {[%clk 0:00:03]} 57. Ke4 {[%clk 0:00:12]}  Kg5 {[%clk 0:00:04]} 58. Kd5 {[%clk 0:00:06]}  Kf6 {[%clk 0:00:04]} 0-1